[Event "Titled Tuesday Blitz January 04 2022"]
[White "Ibrahimli, Murad"]
[Black "Padmini, Rout"]
[WhiteFideId "13410229"]
[BlackFideId "5029295"]
[WhiteElo "2109"]
[BlackElo "2181"]
[Result "0-1"]
[Round "04"]
[TimeControl "180+1"]
[Date "2022.01.04"]
[WhiteClock "0:00:08"]
[BlackClock "0:00:24"]

1. d4 {[%clk 0:03:00]}  Nf6 {[%clk 0:02:58]} 2. c4 {[%clk 0:03:00]}  g6 {[%clk 0:02:58]} 3. Nf3 {[%clk 0:03:00]}  Bg7 {[%clk 0:02:57]} 4. g3 {[%clk 0:03:00]}  O-O {[%clk 0:02:56]} 5. Bg2 {[%clk 0:03:01]}  c6 {[%clk 0:02:56]} 6. O-O {[%clk 0:03:01]}  d5 {[%clk 0:02:57]} 7. b3 {[%clk 0:03:01]}  Bf5 {[%clk 0:02:49]} 8. Bb2 {[%clk 0:02:59]}  Nbd7 {[%clk 0:02:47]} 9. Nbd2 {[%clk 0:02:57]}  Ne4 {[%clk 0:02:46]} 10. e3 {[%clk 0:02:56]}  Nxd2 {[%clk 0:02:46]} 11. Qxd2 {[%clk 0:02:56]}  Be4 {[%clk 0:02:46]} 12. Qe2 {[%clk 0:02:55]}  a5 {[%clk 0:02:37]} 13. Bh3 {[%clk 0:02:46]}  Bxf3 {[%clk 0:02:24]} 14. Qxf3 {[%clk 0:02:45]}  e6 {[%clk 0:02:25]} 15. Rfd1 {[%clk 0:02:27]}  a4 {[%clk 0:02:24]} 16. Qe2 {[%clk 0:02:24]}  axb3 {[%clk 0:02:21]} 17. axb3 {[%clk 0:02:25]}  Qb6 {[%clk 0:02:10]} 18. Qc2 {[%clk 0:02:23]}  Rfc8 {[%clk 0:02:06]} 19. c5 {[%clk 0:02:13]}  Qd8 {[%clk 0:02:06]} 20. b4 {[%clk 0:02:13]}  Rxa1 {[%clk 0:02:02]} 21. Rxa1 {[%clk 0:02:12]}  Ra8 {[%clk 0:02:03]} 22. Qb3 {[%clk 0:01:54]}  Rxa1+ {[%clk 0:02:01]} 23. Bxa1 {[%clk 0:01:55]}  Qa8 {[%clk 0:02:01]} 24. Bc3 {[%clk 0:01:54]}  b5 {[%clk 0:01:46]} 25. cxb6 {[%clk 0:01:35]}  Nxb6 {[%clk 0:01:45]} 26. b5 {[%clk 0:01:36]}  Bf8 {[%clk 0:01:37]} 27. Bf1 {[%clk 0:01:27]}  cxb5 {[%clk 0:01:22]} 28. Qxb5 {[%clk 0:01:24]}  Nc8 {[%clk 0:01:22]} 29. Bd3 {[%clk 0:01:07]}  Nd6 {[%clk 0:01:22]} 30. Qb3 {[%clk 0:01:07]}  Ne4 {[%clk 0:01:14]} 31. Bb2 {[%clk 0:00:59]}  Qa5 {[%clk 0:01:07]} 32. Qc2 {[%clk 0:00:43]}  Nd6 {[%clk 0:00:48]} 33. Kg2 {[%clk 0:00:43]}  Qa2 {[%clk 0:00:35]} 34. Bc1 {[%clk 0:00:43]}  Qxc2 {[%clk 0:00:31]} 35. Bxc2 {[%clk 0:00:44]}  f5 {[%clk 0:00:31]} 36. f3 {[%clk 0:00:44]}  Kf7 {[%clk 0:00:31]} 37. Kf2 {[%clk 0:00:44]}  Be7 {[%clk 0:00:25]} 38. Ke2 {[%clk 0:00:44]}  h5 {[%clk 0:00:24]} 39. Bd2 {[%clk 0:00:41]}  h4 {[%clk 0:00:25]} 40. Be1 {[%clk 0:00:38]}  hxg3 {[%clk 0:00:25]} 41. hxg3 {[%clk 0:00:39]}  g5 {[%clk 0:00:24]} 42. Kd3 {[%clk 0:00:29]}  Nc4 {[%clk 0:00:24]} 43. Bb3 {[%clk 0:00:29]}  Nd6 {[%clk 0:00:23]} 44. Kc3 {[%clk 0:00:21]}  Ne8 {[%clk 0:00:23]} 45. Bd1 {[%clk 0:00:20]}  Nf6 {[%clk 0:00:23]} 46. g4 {[%clk 0:00:17]}  fxg4 {[%clk 0:00:22]} 47. fxg4 {[%clk 0:00:18]}  Bd6 {[%clk 0:00:21]} 48. Kb3 {[%clk 0:00:18]}  Ke7 {[%clk 0:00:21]} 49. Ka4 {[%clk 0:00:18]}  Ne4 {[%clk 0:00:18]} 50. Kb5 {[%clk 0:00:18]}  Bg3 {[%clk 0:00:19]} 51. Bxg3 {[%clk 0:00:17]}  Nxg3 {[%clk 0:00:19]} 52. Bc2 {[%clk 0:00:09]}  Nf1 {[%clk 0:00:16]} 53. e4 {[%clk 0:00:10]}  Ne3 {[%clk 0:00:16]} 54. Bd3 {[%clk 0:00:09]}  dxe4 {[%clk 0:00:17]} 55. Bxe4 {[%clk 0:00:09]}  Nxg4 {[%clk 0:00:17]} 56. d5 {[%clk 0:00:09]}  Nf6 {[%clk 0:00:16]} 57. Bg2 {[%clk 0:00:08]}  Nxd5 {[%clk 0:00:16]} 58. Kc5 {[%clk 0:00:08]}  Nf4 {[%clk 0:00:17]} 59. Kd4 {[%clk 0:00:09]}  Kf6 {[%clk 0:00:18]} 60. Be4 {[%clk 0:00:08]}  e5+ {[%clk 0:00:18]} 61. Ke3 {[%clk 0:00:09]}  g4 {[%clk 0:00:19]} 62. Bc6 {[%clk 0:00:07]}  Ne6 {[%clk 0:00:19]} 63. Ke4 {[%clk 0:00:07]}  Nc5+ {[%clk 0:00:19]} 64. Kd5 {[%clk 0:00:07]}  Nd3 {[%clk 0:00:19]} 65. Ke4 {[%clk 0:00:07]}  Nf2+ {[%clk 0:00:19]} 66. Ke3 {[%clk 0:00:08]}  Nh3 {[%clk 0:00:20]} 67. Bg2 {[%clk 0:00:07]}  Kf5 {[%clk 0:00:19]} 68. Be4+ {[%clk 0:00:07]}  Kf6 {[%clk 0:00:20]} 69. Bg2 {[%clk 0:00:08]}  Ng5 {[%clk 0:00:20]} 70. Kf2 {[%clk 0:00:07]}  Kf5 {[%clk 0:00:21]} 71. Kg3 {[%clk 0:00:07]}  Ne4+ {[%clk 0:00:21]} 72. Kh4 {[%clk 0:00:08]}  Kf4 {[%clk 0:00:22]} 73. Kh5 {[%clk 0:00:07]}  Nd2 {[%clk 0:00:22]} 74. Kh4 {[%clk 0:00:07]}  Nf3+ {[%clk 0:00:23]} 75. Kh5 {[%clk 0:00:08]}  e4 {[%clk 0:00:23]} 76. Bf1 {[%clk 0:00:08]}  e3 {[%clk 0:00:24]} 77. Kg6 {[%clk 0:00:08]}  Ng1 {[%clk 0:00:24]} 0-1


[Site "https://www.chess.com"]

[Event "Titled Tuesday Blitz January 04 2022"]
[White "Kosakowski, Jakub"]
[Black "Sliwicka, Alicja"]
[WhiteFideId "1185080"]
[BlackFideId "1150677"]
[WhiteElo "2476"]
[BlackElo "2120"]
[Result "1-0"]
[Round "04"]
[TimeControl "180+1"]
[Date "2022.01.04"]
[WhiteClock "0:01:39"]
[BlackClock "0:01:42"]

1. d4 {[%clk 0:03:00]}  Nf6 {[%clk 0:02:59]} 2. Bf4 {[%clk 0:02:58]}  d5 {[%clk 0:02:57]} 3. e3 {[%clk 0:02:57]}  c5 {[%clk 0:02:58]} 4. Nd2 {[%clk 0:02:56]}  Nc6 {[%clk 0:02:58]} 5. c3 {[%clk 0:02:57]}  g6 {[%clk 0:02:56]} 6. Ngf3 {[%clk 0:02:56]}  Bg7 {[%clk 0:02:56]} 7. Bb5 {[%clk 0:02:55]}  Bd7 {[%clk 0:02:55]} 8. h3 {[%clk 0:02:55]}  O-O {[%clk 0:02:52]} 9. O-O {[%clk 0:02:41]}  b6 {[%clk 0:02:43]} 10. a4 {[%clk 0:02:38]}  a6 {[%clk 0:02:41]} 11. Be2 {[%clk 0:02:34]}  Nh5 {[%clk 0:02:40]} 12. Bh2 {[%clk 0:02:34]}  Re8 {[%clk 0:02:39]} 13. Ne5 {[%clk 0:02:33]}  Nf6 {[%clk 0:02:34]} 14. f4 {[%clk 0:02:15]}  cxd4 {[%clk 0:02:25]} 15. exd4 {[%clk 0:02:13]}  Rc8 {[%clk 0:02:16]} 16. Bxa6 {[%clk 0:02:13]}  Rc7 {[%clk 0:02:11]} 17. Bb5 {[%clk 0:02:04]}  Ne4 {[%clk 0:02:06]} 18. Nxe4 {[%clk 0:01:54]}  dxe4 {[%clk 0:02:07]} 19. Nxd7 {[%clk 0:01:54]}  Qxd7 {[%clk 0:02:04]} 20. d5 {[%clk 0:01:54]}  Qf5 {[%clk 0:01:53]} 21. dxc6 {[%clk 0:01:50]}  Qc5+ {[%clk 0:01:54]} 22. Kh1 {[%clk 0:01:49]}  e3 {[%clk 0:01:50]} 23. Qe2 {[%clk 0:01:45]}  e5 {[%clk 0:01:48]} 24. Rad1 {[%clk 0:01:41]}  exf4 {[%clk 0:01:44]} 25. Bxf4 {[%clk 0:01:39]}  g5 {[%clk 0:01:42]} 26. Bxc7 {[%clk 0:01:39]} 1-0


[Site "https://www.chess.com"]

[Event "Titled Tuesday Blitz January 04 2022"]
[White "Krishnan, Varun"]
[Black "Ibarra Jerez, Jose Carlos"]
[WhiteFideId "5054508"]
[BlackFideId "2226332"]
[WhiteElo "2537"]
[BlackElo "2626"]
[Result "0-1"]
[Round "04"]
[TimeControl "180+1"]
[Date "2022.01.04"]
[WhiteClock "0:00:04"]
[BlackClock "0:00:18"]

1. e4 {[%clk 0:02:47]}  e6 {[%clk 0:02:55]} 2. d4 {[%clk 0:02:42]}  d5 {[%clk 0:02:55]} 3. Nc3 {[%clk 0:02:42]}  Nf6 {[%clk 0:02:55]} 4. e5 {[%clk 0:02:42]}  Nfd7 {[%clk 0:02:55]} 5. f4 {[%clk 0:02:43]}  c5 {[%clk 0:02:55]} 6. Nf3 {[%clk 0:02:43]}  Nc6 {[%clk 0:02:55]} 7. Be3 {[%clk 0:02:44]}  Be7 {[%clk 0:02:53]} 8. Qd2 {[%clk 0:02:44]}  O-O {[%clk 0:02:52]} 9. dxc5 {[%clk 0:02:43]}  Qa5 {[%clk 0:02:48]} 10. O-O-O {[%clk 0:02:34]}  b6 {[%clk 0:02:46]} 11. cxb6 {[%clk 0:02:12]}  Nxb6 {[%clk 0:02:34]} 12. Kb1 {[%clk 0:01:54]}  Rb8 {[%clk 0:02:27]} 13. Nd4 {[%clk 0:01:38]}  Nxd4 {[%clk 0:02:17]} 14. Bxd4 {[%clk 0:01:39]}  Bd7 {[%clk 0:02:02]} 15. f5 {[%clk 0:01:32]}  exf5 {[%clk 0:01:55]} 16. b3 {[%clk 0:01:04]}  Bb4 {[%clk 0:01:47]} 17. Qe3 {[%clk 0:01:04]}  Rfc8 {[%clk 0:01:44]} 18. e6 {[%clk 0:00:38]}  Bxe6 {[%clk 0:01:20]} 19. Qe5 {[%clk 0:00:37]}  Bf8 {[%clk 0:01:20]} 20. g4 {[%clk 0:00:30]}  fxg4 {[%clk 0:01:08]} 21. h3 {[%clk 0:00:29]}  Nd7 {[%clk 0:01:00]} 22. Qh5 {[%clk 0:00:13]}  Rxc3 {[%clk 0:00:36]} 23. hxg4 {[%clk 0:00:11]}  h6 {[%clk 0:00:36]} 24. g5 {[%clk 0:00:10]}  Rxc2 {[%clk 0:00:32]} 25. Kxc2 {[%clk 0:00:06]}  Qxa2+ {[%clk 0:00:32]} 26. Kd3 {[%clk 0:00:05]}  Rxb3+ {[%clk 0:00:29]} 27. Bc3 {[%clk 0:00:05]}  Bf5+ {[%clk 0:00:26]} 28. Kd4 {[%clk 0:00:04]}  Qf2+ {[%clk 0:00:20]} 29. Kxd5 {[%clk 0:00:04]}  Qc5# {[%clk 0:00:18]} 0-1


[Site "https://www.chess.com"]

[Event "Titled Tuesday Blitz January 04 2022"]
[White "Krivonosov, Oleg"]
[Black "Moroni, Luca Jr"]
[WhiteFideId "11600349"]
[BlackFideId "865834"]
[WhiteElo "2455"]
[BlackElo "2573"]
[Result "0-1"]
[Round "04"]
[TimeControl "180+1"]
[Date "2022.01.04"]
[WhiteClock "0:00:34"]
[BlackClock "0:00:15"]

1. Nf3 {[%clk 0:03:00]}  g6 {[%clk 0:03:00]} 2. d4 {[%clk 0:02:59]}  Bg7 {[%clk 0:03:01]} 3. c4 {[%clk 0:03:00]}  d6 {[%clk 0:03:01]} 4. Nc3 {[%clk 0:02:59]}  Nc6 {[%clk 0:03:01]} 5. d5 {[%clk 0:02:58]}  Ne5 {[%clk 0:03:01]} 6. Nxe5 {[%clk 0:02:58]}  Bxe5 {[%clk 0:03:02]} 7. e4 {[%clk 0:02:57]}  Nf6 {[%clk 0:03:03]} 8. Bd3 {[%clk 0:02:56]}  O-O {[%clk 0:03:03]} 9. O-O {[%clk 0:02:55]}  e6 {[%clk 0:03:03]} 10. h3 {[%clk 0:02:53]}  exd5 {[%clk 0:03:03]} 11. exd5 {[%clk 0:02:53]}  Nh5 {[%clk 0:03:03]} 12. Qf3 {[%clk 0:02:49]}  Qh4 {[%clk 0:03:01]} 13. Bd2 {[%clk 0:02:46]}  g5 {[%clk 0:02:53]} 14. Qe4 {[%clk 0:02:38]}  Qxe4 {[%clk 0:02:42]} 15. Nxe4 {[%clk 0:02:33]}  h6 {[%clk 0:02:42]} 16. Bc3 {[%clk 0:02:06]}  f5 {[%clk 0:02:37]} 17. Ng3 {[%clk 0:01:55]}  Nxg3 {[%clk 0:02:30]} 18. fxg3 {[%clk 0:01:51]}  Bxg3 {[%clk 0:02:30]} 19. Rf3 {[%clk 0:01:35]}  f4 {[%clk 0:02:27]} 20. Be1 {[%clk 0:01:31]}  Bxe1 {[%clk 0:02:23]} 21. Rxe1 {[%clk 0:01:32]}  Bf5 {[%clk 0:02:24]} 22. Bxf5 {[%clk 0:01:31]}  Rxf5 {[%clk 0:02:24]} 23. Rf2 {[%clk 0:01:31]}  Raf8 {[%clk 0:02:20]} 24. Re6 {[%clk 0:01:25]}  R8f6 {[%clk 0:02:17]} 25. Re7 {[%clk 0:01:24]}  Rf7 {[%clk 0:02:12]} 26. Re6 {[%clk 0:01:22]}  Kg7 {[%clk 0:02:08]} 27. Rf1 {[%clk 0:01:17]}  h5 {[%clk 0:01:50]} 28. Rfe1 {[%clk 0:01:16]}  f3 {[%clk 0:01:49]} 29. Rf1 {[%clk 0:01:07]}  fxg2 {[%clk 0:01:31]} 30. Rxf5 {[%clk 0:01:04]}  Rxf5 {[%clk 0:01:32]} 31. Kxg2 {[%clk 0:01:03]}  Re5 {[%clk 0:01:27]} 32. Rxe5 {[%clk 0:01:00]}  dxe5 {[%clk 0:01:28]} 33. Kf3 {[%clk 0:00:57]}  a5 {[%clk 0:01:26]} 34. b3 {[%clk 0:00:56]}  Kf6 {[%clk 0:01:22]} 35. Ke4 {[%clk 0:00:54]}  g4 {[%clk 0:01:18]} 36. hxg4 {[%clk 0:00:53]}  hxg4 {[%clk 0:00:54]} 37. c5 {[%clk 0:00:51]}  Ke7 {[%clk 0:00:51]} 38. a3 {[%clk 0:00:51]}  b6 {[%clk 0:00:34]} 39. b4 {[%clk 0:00:49]}  axb4 {[%clk 0:00:27]} 40. axb4 {[%clk 0:00:48]}  Kd7 {[%clk 0:00:28]} 41. Ke3 {[%clk 0:00:46]}  Kc8 {[%clk 0:00:27]} 42. Ke4 {[%clk 0:00:45]}  Kb7 {[%clk 0:00:26]} 43. Ke3 {[%clk 0:00:43]}  bxc5 {[%clk 0:00:26]} 44. bxc5 {[%clk 0:00:43]}  Ka6 {[%clk 0:00:22]} 45. Ke4 {[%clk 0:00:43]}  Kb5 {[%clk 0:00:18]} 46. c6 {[%clk 0:00:34]}  g3 {[%clk 0:00:15]} 0-1


[Site "https://www.chess.com"]

[Event "Titled Tuesday Blitz January 04 2022"]
[White "Lucas, Arthur"]
[Black "Harutjunyan, Gevorg"]
[WhiteFideId "26093073"]
[BlackFideId "13300873"]
[WhiteElo "2129"]
[BlackElo "2498"]
[Result "0-1"]
[Round "04"]
[TimeControl "180+1"]
[Date "2022.01.04"]
[WhiteClock "0:00:01"]
[BlackClock "0:00:38"]

1. e4 {[%clk 0:02:56]}  c6 {[%clk 0:03:00]} 2. Nc3 {[%clk 0:02:56]}  d5 {[%clk 0:03:01]} 3. Nf3 {[%clk 0:02:56]}  dxe4 {[%clk 0:03:00]} 4. Nxe4 {[%clk 0:02:57]}  Nf6 {[%clk 0:03:01]} 5. Qe2 {[%clk 0:02:58]}  Nxe4 {[%clk 0:03:00]} 6. Qxe4 {[%clk 0:02:59]}  Qa5 {[%clk 0:03:00]} 7. b4 {[%clk 0:02:55]}  Qf5 {[%clk 0:02:55]} 8. Qxf5 {[%clk 0:02:34]}  Bxf5 {[%clk 0:02:56]} 9. c4 {[%clk 0:02:23]}  e6 {[%clk 0:02:48]} 10. a3 {[%clk 0:02:17]}  a5 {[%clk 0:02:46]} 11. b5 {[%clk 0:02:16]}  cxb5 {[%clk 0:02:32]} 12. cxb5 {[%clk 0:02:17]}  Bc5 {[%clk 0:02:33]} 13. Be2 {[%clk 0:02:10]}  Nd7 {[%clk 0:02:32]} 14. O-O {[%clk 0:02:08]}  Ke7 {[%clk 0:02:22]} 15. Bb2 {[%clk 0:02:07]}  f6 {[%clk 0:02:21]} 16. Rfe1 {[%clk 0:01:55]}  g5 {[%clk 0:01:38]} 17. Bc4 {[%clk 0:01:37]}  Nb6 {[%clk 0:01:29]} 18. Ba2 {[%clk 0:01:23]}  Na4 {[%clk 0:01:26]} 19. Bd4 {[%clk 0:01:13]}  Rhd8 {[%clk 0:01:24]} 20. Bxc5+ {[%clk 0:01:07]}  Nxc5 {[%clk 0:01:25]} 21. d4 {[%clk 0:01:01]}  Nd3 {[%clk 0:01:23]} 22. Re3 {[%clk 0:00:58]}  Nf4 {[%clk 0:01:23]} 23. g3 {[%clk 0:00:40]}  Nd5 {[%clk 0:01:23]} 24. Ree1 {[%clk 0:00:27]}  Rac8 {[%clk 0:01:15]} 25. Rac1 {[%clk 0:00:22]}  Kd6 {[%clk 0:00:54]} 26. Nd2 {[%clk 0:00:15]}  Bd3 {[%clk 0:00:50]} 27. Bxd5 {[%clk 0:00:04]}  Kxd5 {[%clk 0:00:48]} 28. Nb3 {[%clk 0:00:03]}  b6 {[%clk 0:00:46]} 29. Rc6 {[%clk 0:00:01]}  Rxc6 {[%clk 0:00:40]} 30. bxc6 {[%clk 0:00:02]}  Rc8 {[%clk 0:00:39]} 31. Rd1 {[%clk 0:00:01]}  Bc2 {[%clk 0:00:38]} 0-1


[Site "https://www.chess.com"]

[Event "Titled Tuesday Blitz January 04 2022"]
[White "Maghsoodloo, Parham"]
[Black "Ten Hertog, Hugo"]
[WhiteFideId "12539929"]
[BlackFideId "1026356"]
[WhiteElo "2630"]
[BlackElo "2493"]
[Result "0-1"]
[Round "04"]
[TimeControl "180+1"]
[Date "2022.01.04"]
[WhiteClock "0:00:11"]
[BlackClock "0:00:05"]

1. e4 {[%clk 0:03:00]}  g6 {[%clk 0:02:59]} 2. d4 {[%clk 0:03:00]}  Bg7 {[%clk 0:02:54]} 3. Nc3 {[%clk 0:03:01]}  d6 {[%clk 0:02:54]} 4. h4 {[%clk 0:03:00]}  h6 {[%clk 0:02:54]} 5. h5 {[%clk 0:03:00]}  g5 {[%clk 0:02:54]} 6. f4 {[%clk 0:03:00]}  gxf4 {[%clk 0:02:54]} 7. Bxf4 {[%clk 0:03:01]}  Nc6 {[%clk 0:02:54]} 8. Nf3 {[%clk 0:03:01]}  Bg4 {[%clk 0:02:54]} 9. Be3 {[%clk 0:03:01]}  Nf6 {[%clk 0:02:52]} 10. d5 {[%clk 0:02:33]}  Ne5 {[%clk 0:02:41]} 11. Be2 {[%clk 0:02:31]}  Nxf3+ {[%clk 0:02:39]} 12. Bxf3 {[%clk 0:02:31]}  Bxf3 {[%clk 0:02:39]} 13. gxf3 {[%clk 0:02:28]}  Nd7 {[%clk 0:02:38]} 14. Bd4 {[%clk 0:02:28]}  Bxd4 {[%clk 0:02:32]} 15. Qxd4 {[%clk 0:02:28]}  Rg8 {[%clk 0:02:32]} 16. O-O-O {[%clk 0:02:27]}  Nf6 {[%clk 0:02:07]} 17. Rdg1 {[%clk 0:02:23]}  Rxg1+ {[%clk 0:02:04]} 18. Qxg1 {[%clk 0:02:22]}  Kd7 {[%clk 0:01:45]} 19. Qe3 {[%clk 0:02:11]}  Qg8 {[%clk 0:01:19]} 20. Ne2 {[%clk 0:01:58]}  Qg5 {[%clk 0:01:14]} 21. Kd2 {[%clk 0:01:30]}  Qxe3+ {[%clk 0:01:08]} 22. Kxe3 {[%clk 0:01:30]}  Rg8 {[%clk 0:01:09]} 23. Kf2 {[%clk 0:01:30]}  e6 {[%clk 0:01:01]} 24. c4 {[%clk 0:01:30]}  c6 {[%clk 0:00:52]} 25. dxe6+ {[%clk 0:01:29]}  fxe6 {[%clk 0:00:46]} 26. Ng3 {[%clk 0:01:30]}  Rf8 {[%clk 0:00:33]} 27. Rd1 {[%clk 0:01:18]}  Ng4+ {[%clk 0:00:29]} 28. Ke2 {[%clk 0:01:15]}  Ne5 {[%clk 0:00:29]} 29. c5 {[%clk 0:01:10]}  Rxf3 {[%clk 0:00:23]} 30. Rxd6+ {[%clk 0:01:03]}  Ke7 {[%clk 0:00:23]} 31. Nh1 {[%clk 0:00:53]}  Rh3 {[%clk 0:00:20]} 32. Nf2 {[%clk 0:00:52]}  Rxh5 {[%clk 0:00:19]} 33. Rd1 {[%clk 0:00:51]}  a5 {[%clk 0:00:12]} 34. a3 {[%clk 0:00:47]}  Rh2 {[%clk 0:00:08]} 35. Rg1 {[%clk 0:00:45]}  h5 {[%clk 0:00:07]} 36. Ke3 {[%clk 0:00:41]}  Ng4+ {[%clk 0:00:06]} 37. Nxg4 {[%clk 0:00:40]}  hxg4 {[%clk 0:00:07]} 38. b4 {[%clk 0:00:26]}  axb4 {[%clk 0:00:04]} 39. a4 {[%clk 0:00:27]}  Ra2 {[%clk 0:00:02]} 40. Rxg4 {[%clk 0:00:27]}  Rxa4 {[%clk 0:00:02]} 41. Rg7+ {[%clk 0:00:27]}  Kf6 {[%clk 0:00:02]} 42. Rxb7 {[%clk 0:00:27]}  Ke5 {[%clk 0:00:03]} 43. Kd3 {[%clk 0:00:26]}  Ra3+ {[%clk 0:00:02]} 44. Kc4 {[%clk 0:00:26]}  Re3 {[%clk 0:00:02]} 45. Rd7 {[%clk 0:00:23]}  Rxe4+ {[%clk 0:00:03]} 46. Kb3 {[%clk 0:00:23]}  Rd4 {[%clk 0:00:03]} 47. Rh7 {[%clk 0:00:17]}  Kd5 {[%clk 0:00:03]} 48. Rh5+ {[%clk 0:00:18]}  e5 {[%clk 0:00:03]} 49. Ka4 {[%clk 0:00:17]}  Re4 {[%clk 0:00:03]} 50. Rh1 {[%clk 0:00:13]}  Kxc5 {[%clk 0:00:03]} 51. Ka5 {[%clk 0:00:12]}  Rc4 {[%clk 0:00:03]} 52. Re1 {[%clk 0:00:12]}  Kd5 {[%clk 0:00:03]} 53. Ka4 {[%clk 0:00:12]}  c5 {[%clk 0:00:03]} 54. Rh1 {[%clk 0:00:10]}  Rd4 {[%clk 0:00:04]} 55. Kb5 {[%clk 0:00:10]}  b3 {[%clk 0:00:04]} 56. Rh8 {[%clk 0:00:11]}  Rb4+ {[%clk 0:00:04]} 57. Ka5 {[%clk 0:00:11]}  b2 {[%clk 0:00:05]} 0-1


[Site "https://www.chess.com"]

[Event "Titled Tuesday Blitz January 04 2022"]
[White "Maksimovic, Bojan"]
[Black "Andreikin, Dmitry"]
[WhiteFideId "14408120"]
[BlackFideId "4158814"]
[WhiteElo "2450"]
[BlackElo "2736"]
[Result "0-1"]
[Round "04"]
[TimeControl "180+1"]
[Date "2022.01.04"]
[WhiteClock "0:00:01"]
[BlackClock "0:00:04"]

1. d4 {[%clk 0:03:00]}  d5 {[%clk 0:02:59]} 2. c4 {[%clk 0:03:00]}  c6 {[%clk 0:02:59]} 3. Nf3 {[%clk 0:02:59]}  Nf6 {[%clk 0:02:59]} 4. e3 {[%clk 0:02:59]}  a6 {[%clk 0:02:57]} 5. Nc3 {[%clk 0:02:56]}  b5 {[%clk 0:02:57]} 6. b3 {[%clk 0:02:52]}  Bg4 {[%clk 0:02:57]} 7. Be2 {[%clk 0:02:50]}  e6 {[%clk 0:02:54]} 8. O-O {[%clk 0:02:47]}  Nbd7 {[%clk 0:02:52]} 9. Bb2 {[%clk 0:02:46]}  Bd6 {[%clk 0:02:49]} 10. Rc1 {[%clk 0:02:44]}  O-O {[%clk 0:02:48]} 11. a4 {[%clk 0:02:37]}  bxc4 {[%clk 0:02:43]} 12. bxc4 {[%clk 0:02:36]}  Bxf3 {[%clk 0:02:37]} 13. Bxf3 {[%clk 0:02:35]}  Bxh2+ {[%clk 0:02:37]} 14. Kxh2 {[%clk 0:02:30]}  Qb8+ {[%clk 0:02:37]} 15. g3 {[%clk 0:02:19]}  Qxb2 {[%clk 0:02:36]} 16. Qc2 {[%clk 0:02:06]}  Rab8 {[%clk 0:02:28]} 17. Kg2 {[%clk 0:01:55]}  h5 {[%clk 0:02:22]} 18. Ne2 {[%clk 0:01:48]}  g5 {[%clk 0:02:19]} 19. Nc3 {[%clk 0:01:39]}  Kg7 {[%clk 0:02:15]} 20. Rh1 {[%clk 0:01:37]}  g4 {[%clk 0:02:11]} 21. Be2 {[%clk 0:01:36]}  a5 {[%clk 0:02:08]} 22. cxd5 {[%clk 0:01:35]}  cxd5 {[%clk 0:02:07]} 23. Nb5 {[%clk 0:01:18]}  Qxc2 {[%clk 0:02:06]} 24. Rxc2 {[%clk 0:01:19]}  Rfc8 {[%clk 0:01:59]} 25. Rhc1 {[%clk 0:01:04]}  Rxc2 {[%clk 0:01:58]} 26. Rxc2 {[%clk 0:01:05]}  Nb6 {[%clk 0:01:58]} 27. Rc7 {[%clk 0:00:56]}  Ne4 {[%clk 0:01:50]} 28. Bd3 {[%clk 0:00:49]}  Nxa4 {[%clk 0:01:50]} 29. Ra7 {[%clk 0:00:31]}  Nb2 {[%clk 0:01:47]} 30. Bxe4 {[%clk 0:00:29]}  Rxb5 {[%clk 0:01:46]} 31. Bc2 {[%clk 0:00:30]}  Nc4 {[%clk 0:01:44]} 32. Bd3 {[%clk 0:00:28]}  Kf6 {[%clk 0:01:36]} 33. Be2 {[%clk 0:00:25]}  Kg6 {[%clk 0:01:22]} 34. Bd3+ {[%clk 0:00:26]}  f5 {[%clk 0:01:22]} 35. Ra6 {[%clk 0:00:23]}  Kf6 {[%clk 0:01:22]} 36. Be2 {[%clk 0:00:24]}  Ke7 {[%clk 0:01:22]} 37. Bd3 {[%clk 0:00:23]}  Kd7 {[%clk 0:01:22]} 38. Be2 {[%clk 0:00:20]}  Rb7 {[%clk 0:01:02]} 39. Bxc4 {[%clk 0:00:20]}  dxc4 {[%clk 0:01:03]} 40. Rxa5 {[%clk 0:00:21]}  c3 {[%clk 0:01:03]} 41. Ra1 {[%clk 0:00:17]}  c2 {[%clk 0:01:03]} 42. Rc1 {[%clk 0:00:17]}  Rc7 {[%clk 0:01:03]} 43. Kf1 {[%clk 0:00:18]}  Kd6 {[%clk 0:01:03]} 44. Ke2 {[%clk 0:00:19]}  Kd5 {[%clk 0:01:03]} 45. Kd3 {[%clk 0:00:19]}  Ra7 {[%clk 0:00:45]} 46. Rxc2 {[%clk 0:00:20]}  Ra3+ {[%clk 0:00:45]} 47. Rc3 {[%clk 0:00:17]}  Ra2 {[%clk 0:00:42]} 48. Rc5+ {[%clk 0:00:16]}  Kd6 {[%clk 0:00:43]} 49. Rc2 {[%clk 0:00:17]}  Ra3+ {[%clk 0:00:41]} 50. Ke2 {[%clk 0:00:17]}  Ra5 {[%clk 0:00:40]} 51. Kd3 {[%clk 0:00:13]}  Kd5 {[%clk 0:00:40]} 52. Rc3 {[%clk 0:00:14]}  Rb5 {[%clk 0:00:40]} 53. Ra3 {[%clk 0:00:14]}  Rb2 {[%clk 0:00:40]} 54. Ra5+ {[%clk 0:00:14]}  Kd6 {[%clk 0:00:40]} 55. Ra6+ {[%clk 0:00:14]}  Ke7 {[%clk 0:00:40]} 56. Ra7+ {[%clk 0:00:12]}  Kf6 {[%clk 0:00:40]} 57. Rh7 {[%clk 0:00:12]}  Kg6 {[%clk 0:00:38]} 58. Re7 {[%clk 0:00:12]}  Kf6 {[%clk 0:00:38]} 59. Rh7 {[%clk 0:00:12]}  Rxf2 {[%clk 0:00:37]} 60. Rh6+ {[%clk 0:00:11]}  Kf7 {[%clk 0:00:31]} 61. Rxh5 {[%clk 0:00:12]}  Rg2 {[%clk 0:00:31]} 62. d5 {[%clk 0:00:10]}  Rxg3 {[%clk 0:00:31]} 63. Kd4 {[%clk 0:00:10]}  Rf3 {[%clk 0:00:16]} 64. d6 {[%clk 0:00:10]}  g3 {[%clk 0:00:16]} 65. Rh7+ {[%clk 0:00:08]}  Ke8 {[%clk 0:00:15]} 66. Rg7 {[%clk 0:00:04]}  Kd8 {[%clk 0:00:11]} 67. Ke5 {[%clk 0:00:02]}  Rxe3+ {[%clk 0:00:11]} 68. Kf6 {[%clk 0:00:03]}  f4 {[%clk 0:00:10]} 69. d7 {[%clk 0:00:02]}  Re2 {[%clk 0:00:05]} 70. Rg4 {[%clk 0:00:01]}  g2 {[%clk 0:00:04]} 0-1


[Site "https://www.chess.com"]